[Event "Early-Titled-Tuesday-Blitz-February-20-2024"]
[Site "Chess.com"]
[Date "2024.02.20"]
[Round "7"]
[White "ActorXu"]
[Black "mishanick"]
[Result "1-0"]
[WhiteElo "2833"]
[BlackElo "3032"]
[TimeControl "180+1"]
[EndTime "9:21:56 PST"]
[Termination "ActorXu won by resignation"]

1. e4 {[%clk 0:03:00.9]} 1... c5 {[%clk 0:03:00]} 2. Nf3 {[%clk 0:03:01.1]} 2...
e6 {[%clk 0:03:00.6]} 3. d4 {[%clk 0:03:00.8]} 3... cxd4 {[%clk 0:03:01.5]} 4.
Nxd4 {[%clk 0:03:01.5]} 4... Nc6 {[%clk 0:03:02.2]} 5. Nc3 {[%clk 0:03:01.9]}
5... a6 {[%clk 0:03:02.9]} 6. Nxc6 {[%clk 0:02:59]} 6... bxc6 {[%clk 0:03:03.8]}
7. Bd3 {[%clk 0:02:59.5]} 7... d5 {[%clk 0:03:03.9]} 8. O-O {[%clk 0:03:00.1]}
8... Nf6 {[%clk 0:03:04]} 9. Qe2 {[%clk 0:02:58.2]} 9... Be7 {[%clk 0:03:03.9]}
10. b3 {[%clk 0:02:58.1]} 10... O-O {[%clk 0:03:03.1]} 11. Bb2 {[%clk
0:02:58.6]} 11... a5 {[%clk 0:03:02.1]} 12. Na4 {[%clk 0:02:48.9]} 12... c5
{[%clk 0:02:57]} 13. c4 {[%clk 0:02:46]} 13... dxe4 {[%clk 0:02:42.7]} 14. Bxe4
{[%clk 0:02:45.9]} 14... Nxe4 {[%clk 0:02:42.4]} 15. Qxe4 {[%clk 0:02:45]} 15...
Ra7 {[%clk 0:02:37]} 16. Rad1 {[%clk 0:02:40.6]} 16... Bd7 {[%clk 0:02:11.9]}
17. Nxc5 {[%clk 0:02:13.2]} 17... Bxc5 {[%clk 0:02:05.5]} 18. Qe5 {[%clk
0:02:12.8]} 18... Bxf2+ {[%clk 0:01:37.7]} 19. Rxf2 {[%clk 0:02:12.8]} 19... f6
{[%clk 0:01:38.4]} 20. Qc5 {[%clk 0:01:46.5]} 20... Qa8 {[%clk 0:01:13.2]} 21.
Rfd2 {[%clk 0:01:30]} 21... Rf7 {[%clk 0:01:12.9]} 22. Rd6 {[%clk 0:01:20.5]}
22... h6 {[%clk 0:01:04.2]} 23. Qb6 {[%clk 0:01:13.8]} 23... Rb7 {[%clk
0:00:43.1]} 24. Qe3 {[%clk 0:01:05.5]} 24... e5 {[%clk 0:00:40.4]} 25. c5 {[%clk
0:01:04.7]} 25... Rc7 {[%clk 0:00:32.5]} 26. c6 {[%clk 0:01:04.3]} 26... Be8
{[%clk 0:00:33]} 27. Qf3 {[%clk 0:00:31.5]} 27... Rc8 {[%clk 0:00:30.5]} 28. Rc1
{[%clk 0:00:27.5]} 28... Rfc7 {[%clk 0:00:28.5]} 29. Qd5+ {[%clk 0:00:24.1]}
29... Kh8 {[%clk 0:00:25.3]} 30. Qe6 {[%clk 0:00:14.2]} 30... Rxc6 {[%clk
0:00:21.7]} 31. Rdxc6 {[%clk 0:00:12.5]} 31... Bxc6 {[%clk 0:00:22.6]} 32. h3
{[%clk 0:00:09.8]} 32... Qb7 {[%clk 0:00:19.4]} 33. Kh2 {[%clk 0:00:09.8]} 33...
Bd7 {[%clk 0:00:15.2]} 34. Rxc8+ {[%clk 0:00:09.3]} 34... Qxc8 {[%clk
0:00:16.1]} 35. Qe7 {[%clk 0:00:09.6]} 35... Bc6 {[%clk 0:00:13.6]} 36. Ba3
{[%clk 0:00:09.5]} 36... Qf5 {[%clk 0:00:09.1]} 37. Qd8+ {[%clk 0:00:07.9]}
37... Kh7 {[%clk 0:00:09.3]} 38. Qd2 {[%clk 0:00:08.5]} 38... Qe4 {[%clk
0:00:08.9]} 39. Bf8 {[%clk 0:00:05.4]} 39... h5 {[%clk 0:00:08.2]} 40. Qf2
{[%clk 0:00:04.2]} 40... h4 {[%clk 0:00:08.3]} 41. Bc5 {[%clk 0:00:04]} 41... g5
{[%clk 0:00:07.4]} 42. Bb6 {[%clk 0:00:04.3]} 42... Kg6 {[%clk 0:00:05.1]} 43.
Bxa5 {[%clk 0:00:04]} 43... f5 {[%clk 0:00:04.8]} 44. Be1 {[%clk 0:00:02.8]}
44... f4 {[%clk 0:00:04.6]} 45. a4 {[%clk 0:00:02.6]} 45... Bd5 {[%clk
0:00:04.1]} 46. a5 {[%clk 0:00:01.7]} 46... Kh5 {[%clk 0:00:01.6]} 47. a6 {[%clk
0:00:02.1]} 47... Bxb3 {[%clk 0:00:01.7]} 48. a7 {[%clk 0:00:01.3]} 48... Bd5
{[%clk 0:00:02.1]} 49. Qf1 {[%clk 0:00:01.5]} 49... Kg6 {[%clk 0:00:01.2]} 50.
Qf2 {[%clk 0:00:01.6]} 50... Kf5 {[%clk 0:00:01.8]} 51. Qf1 {[%clk 0:00:02]}
51... Ba8 {[%clk 0:00:02.2]} 52. Qf2 {[%clk 0:00:02.5]} 52... Bb7 {[%clk
0:00:02.9]} 53. Qf1 {[%clk 0:00:03]} 53... Bc6 {[%clk 0:00:03.6]} 54. Qf2 {[%clk
0:00:03.7]} 54... Bd5 {[%clk 0:00:04.3]} 55. Qf1 {[%clk 0:00:04.4]} 55... Qc2
{[%clk 0:00:04.9]} 56. Qf2 {[%clk 0:00:04.7]} 56... Qxf2 {[%clk 0:00:05.3]} 57.
Bxf2 {[%clk 0:00:04.9]} 57... e4 {[%clk 0:00:05.9]} 58. Kg1 {[%clk 0:00:05.4]}
58... e3 {[%clk 0:00:06.4]} 59. Be1 {[%clk 0:00:06.1]} 59... Ke4 {[%clk
0:00:06.9]} 60. Kf1 {[%clk 0:00:06.6]} 60... f3 {[%clk 0:00:06.5]} 61. gxf3+
{[%clk 0:00:06]} 61... Kxf3 {[%clk 0:00:07.4]} 62. Bc3 {[%clk 0:00:06.5]} 62...
Kg3 {[%clk 0:00:07.6]} 63. Bf6 {[%clk 0:00:07]} 63... g4 {[%clk 0:00:08]} 64.
hxg4 {[%clk 0:00:06.1]} 64... h3 {[%clk 0:00:08.4]} 65. Be5+ {[%clk 0:00:06.6]}
65... Kf3 {[%clk 0:00:08.5]} 66. Ke1 {[%clk 0:00:06.2]} 66... Kxg4 {[%clk
0:00:08.5]} 67. Ke2 {[%clk 0:00:06.2]} 67... Kf5 {[%clk 0:00:09.2]} 68. Bh2
{[%clk 0:00:06.5]} 68... Ke4 {[%clk 0:00:09.8]} 69. Bg3 {[%clk 0:00:06.8]} 69...
Bc6 {[%clk 0:00:09.9]} 70. Ke1 {[%clk 0:00:07.1]} 70... Kf3 {[%clk 0:00:09.9]}
71. Bc7 {[%clk 0:00:07.6]} 71... Bb7 {[%clk 0:00:10.2]} 72. Bd6 {[%clk
0:00:07.6]} 72... Bd5 {[%clk 0:00:10.1]} 73. Bc7 {[%clk 0:00:08]} 73... Bc6
{[%clk 0:00:09.2]} 74. Bd6 {[%clk 0:00:08.4]} 74... Ba8 {[%clk 0:00:08.3]} 75.
Bc7 {[%clk 0:00:08.9]} 75... Bd5 {[%clk 0:00:08.9]} 76. Bd6 {[%clk 0:00:09.3]}
76... Ke4 {[%clk 0:00:09.5]} 77. Ke2 {[%clk 0:00:09.2]} 77... Bc6 {[%clk
0:00:09.7]} 78. Ke1 {[%clk 0:00:09.5]} 78... Kd3 {[%clk 0:00:09.9]} 79. Bc7
{[%clk 0:00:09.8]} 79... Bf3 {[%clk 0:00:10.4]} 80. Bd6 {[%clk 0:00:10.4]} 80...
e2 {[%clk 0:00:10.1]} 81. Bh2 {[%clk 0:00:10.4]} 81... Bd5 {[%clk 0:00:08.6]}
82. Bf4 {[%clk 0:00:10.7]} 82... Ke4 {[%clk 0:00:07.8]} 83. Bh2 {[%clk
0:00:11.2]} 83... Ke3 {[%clk 0:00:07.9]} 84. Bg1+ {[%clk 0:00:10.5]} 84... Kf4
{[%clk 0:00:07.9]} 85. Bh2+ {[%clk 0:00:11]} 85... Kf3 {[%clk 0:00:08.2]} 86.
Bd6 {[%clk 0:00:11]} 86... Be4 {[%clk 0:00:08.3]} 87. Bc7 {[%clk 0:00:11.2]}
87... Ke3 {[%clk 0:00:06.9]} 88. Bb8 {[%clk 0:00:11.3]} 88... Bf3 {[%clk
0:00:06.8]} 89. Be5 {[%clk 0:00:11.6]} 89... Ke4 {[%clk 0:00:06.6]} 90. a8=Q+
{[%clk 0:00:11.2]} 90... Kxe5 {[%clk 0:00:06.8]} 91. Qxf3 {[%clk 0:00:11.7]} 1-0

[Event "Early-Titled-Tuesday-Blitz-February-20-2024"]
[Site "Chess.com"]
[Date "2024.02.20"]
[Round "7"]
[White "Nemegejas"]
[Black "DenLaz"]
[Result "1/2-1/2"]
[WhiteElo "2811"]
[BlackElo "3028"]
[TimeControl "180+1"]
[EndTime "9:22:06 PST"]
[Termination "Game drawn - insufficient material"]

1. Nf3 {[%clk 0:03:00.9]} 1... d5 {[%clk 0:02:58.8]} 2. g3 {[%clk 0:03:01.2]}
2... Nf6 {[%clk 0:02:56.6]} 3. Bg2 {[%clk 0:03:01.5]} 3... e6 {[%clk 0:02:52.4]}
4. O-O {[%clk 0:03:02.4]} 4... Be7 {[%clk 0:02:52.7]} 5. d3 {[%clk 0:02:59.7]}
5... O-O {[%clk 0:02:50.7]} 6. b3 {[%clk 0:02:58.5]} 6... c5 {[%clk 0:02:46.3]}
7. Bb2 {[%clk 0:02:57.9]} 7... Nc6 {[%clk 0:02:46.7]} 8. Nbd2 {[%clk 0:02:57.9]}
8... Qc7 {[%clk 0:02:45.5]} 9. e3 {[%clk 0:02:58.1]} 9... e5 {[%clk 0:02:45.3]}
10. c4 {[%clk 0:02:55.1]} 10... d4 {[%clk 0:02:41.7]} 11. exd4 {[%clk 0:02:56]}
11... cxd4 {[%clk 0:02:37.6]} 12. a3 {[%clk 0:02:55.4]} 12... a5 {[%clk
0:02:36.1]} 13. Re1 {[%clk 0:02:55.9]} 13... Bf5 {[%clk 0:02:28.2]} 14. Qe2
{[%clk 0:02:55.8]} 14... Bd6 {[%clk 0:02:24.8]} 15. Ng5 {[%clk 0:02:44.3]} 15...
Rfe8 {[%clk 0:02:22.3]} 16. Nge4 {[%clk 0:02:39.7]} 16... Nxe4 {[%clk
0:02:21.4]} 17. Nxe4 {[%clk 0:02:40.6]} 17... Bf8 {[%clk 0:02:21.6]} 18. g4
{[%clk 0:02:40.9]} 18... Bd7 {[%clk 0:02:14.3]} 19. c5 {[%clk 0:02:34.2]} 19...
Be6 {[%clk 0:02:12.5]} 20. Qd1 {[%clk 0:02:19.1]} 20... Rad8 {[%clk 0:02:05.6]}
21. Rc1 {[%clk 0:02:17.6]} 21... Qd7 {[%clk 0:01:55.4]} 22. h3 {[%clk
0:02:10.5]} 22... Bd5 {[%clk 0:01:54.1]} 23. Ng3 {[%clk 0:01:57.7]} 23... Bxg2
{[%clk 0:01:51]} 24. Kxg2 {[%clk 0:01:58.6]} 24... Ne7 {[%clk 0:01:50.8]} 25.
Rxe5 {[%clk 0:01:40.7]} 25... Ng6 {[%clk 0:01:50.8]} 26. Rxe8 {[%clk 0:01:39]}
26... Rxe8 {[%clk 0:01:51.7]} 27. Ne4 {[%clk 0:01:37.4]} 27... Qd5 {[%clk
0:01:45.8]} 28. Rc4 {[%clk 0:01:23.6]} 28... Nf4+ {[%clk 0:01:44.3]} 29. Kh2
{[%clk 0:01:21.1]} 29... f5 {[%clk 0:01:12.6]} 30. gxf5 {[%clk 0:01:01.5]} 30...
Qxf5 {[%clk 0:00:57.9]} 31. Qf3 {[%clk 0:00:58.8]} 31... Re6 {[%clk 0:00:56.2]}
32. Rxd4 {[%clk 0:00:34.2]} 32... Rh6 {[%clk 0:00:55.4]} 33. Ng5 {[%clk
0:00:33.7]} 33... Rf6 {[%clk 0:00:11.5]} 34. Re4 {[%clk 0:00:16.5]} 34... Nxd3
{[%clk 0:00:07.6]} 35. Bxf6 {[%clk 0:00:15.7]} 35... Qxf3 {[%clk 0:00:07.5]} 36.
Nxf3 {[%clk 0:00:15.8]} 36... gxf6 {[%clk 0:00:08.4]} 37. b4 {[%clk 0:00:15.5]}
37... axb4 {[%clk 0:00:08.5]} 38. axb4 {[%clk 0:00:16.4]} 38... Nxf2 {[%clk
0:00:09.4]} 39. Re8 {[%clk 0:00:16.9]} 39... Nd3 {[%clk 0:00:08.6]} 40. Nd4
{[%clk 0:00:12.6]} 40... Nxb4 {[%clk 0:00:06.5]} 41. Rb8 {[%clk 0:00:08.8]}
41... Na6 {[%clk 0:00:04.9]} 42. Rxb7 {[%clk 0:00:04.9]} 42... Nxc5 {[%clk
0:00:05.5]} 43. Ra7 {[%clk 0:00:05.4]} 43... Bd6+ {[%clk 0:00:05.7]} 44. Kg2
{[%clk 0:00:05.1]} 44... Be5 {[%clk 0:00:06.6]} 45. Nf5 {[%clk 0:00:05.5]} 45...
Ne6 {[%clk 0:00:06.4]} 46. Kf3 {[%clk 0:00:04.6]} 46... h5 {[%clk 0:00:07.1]}
47. h4 {[%clk 0:00:03.7]} 47... Nc5 {[%clk 0:00:05.1]} 48. Ke3 {[%clk
0:00:03.1]} 48... Ne6 {[%clk 0:00:05.3]} 49. Ke4 {[%clk 0:00:03.1]} 49... Nf4
{[%clk 0:00:05.8]} 50. Rb7 {[%clk 0:00:02.8]} 50... Kf8 {[%clk 0:00:05.4]} 51.
Ra7 {[%clk 0:00:02.6]} 51... Kg8 {[%clk 0:00:05.7]} 52. Nh6+ {[%clk 0:00:02.7]}
52... Kf8 {[%clk 0:00:06.1]} 53. Rf7+ {[%clk 0:00:03.3]} 53... Ke8 {[%clk
0:00:06.4]} 54. Kf5 {[%clk 0:00:04]} 54... Ng2 {[%clk 0:00:05.9]} 55. Ke6 {[%clk
0:00:02.9]} 55... Nxh4 {[%clk 0:00:06.5]} 56. Ng8 {[%clk 0:00:02.4]} 56... Nf3
{[%clk 0:00:04.9]} 57. Nxf6+ {[%clk 0:00:02.5]} 57... Bxf6 {[%clk 0:00:05.2]}
58. Kxf6 {[%clk 0:00:03.4]} 58... Nd4 {[%clk 0:00:04.9]} 59. Rc7 {[%clk
0:00:03.7]} 59... Kd8 {[%clk 0:00:04.9]} 60. Rc5 {[%clk 0:00:04.2]} 60... Nb3
{[%clk 0:00:03.5]} 61. Rd5+ {[%clk 0:00:03.5]} 61... Kc7 {[%clk 0:00:03.8]} 62.
Ke6 {[%clk 0:00:02.6]} 62... Kc6 {[%clk 0:00:04.2]} 63. Ke5 {[%clk 0:00:03.5]}
63... Nc5 {[%clk 0:00:04.7]} 64. Rd1 {[%clk 0:00:02.7]} 64... h4 {[%clk
0:00:04.7]} 65. Rh1 {[%clk 0:00:03.2]} 65... Nd7+ {[%clk 0:00:04.8]} 66. Kf5
{[%clk 0:00:03.5]} 66... Nc5 {[%clk 0:00:04.6]} 67. Rxh4 {[%clk 0:00:03.9]}
67... Kd5 {[%clk 0:00:05.5]} 68. Rh8 {[%clk 0:00:03.9]} 68... Nb3 {[%clk
0:00:05.7]} 69. Rd8+ {[%clk 0:00:04.2]} 69... Kc4 {[%clk 0:00:06.3]} 70. Ke5
{[%clk 0:00:04.8]} 70... Nc5 {[%clk 0:00:06.9]} 71. Rc8 {[%clk 0:00:05.4]} 71...
Kb4 {[%clk 0:00:07.1]} 72. Kd5 {[%clk 0:00:06.2]} 72... Nb3 {[%clk 0:00:07.8]}
73. Rb8+ {[%clk 0:00:06.8]} 73... Kc3 {[%clk 0:00:08.2]} 74. Rh8 {[%clk
0:00:05]} 74... Kb4 {[%clk 0:00:08.7]} 75. Rh3 {[%clk 0:00:04.8]} 75... Na5
{[%clk 0:00:08.5]} 76. Rh4+ {[%clk 0:00:04.7]} 76... Kc3 {[%clk 0:00:08.5]} 77.
Ke4 {[%clk 0:00:03.9]} 77... Nb3 {[%clk 0:00:08.8]} 78. Rh3+ {[%clk 0:00:04.4]}
78... Kc4 {[%clk 0:00:09.1]} 79. Rh1 {[%clk 0:00:04]} 79... Nc5+ {[%clk
0:00:09.5]} 80. Ke5 {[%clk 0:00:04.3]} 80... Nb3 {[%clk 0:00:10.4]} 81. Rb1
{[%clk 0:00:03.1]} 81... Kc3 {[%clk 0:00:10.3]} 82. Rg1 {[%clk 0:00:02.9]} 82...
Kc4 {[%clk 0:00:10.8]} 83. Rg3 {[%clk 0:00:03]} 83... Nc5 {[%clk 0:00:11]} 84.
Rg4+ {[%clk 0:00:03.1]} 84... Kc3 {[%clk 0:00:11]} 85. Kd5 {[%clk 0:00:04]}
85... Nd3 {[%clk 0:00:11.1]} 86. Rc4+ {[%clk 0:00:04.3]} 86... Kd2 {[%clk
0:00:11.5]} 87. Ke4 {[%clk 0:00:04.4]} 87... Nf2+ {[%clk 0:00:11.3]} 88. Kf3
{[%clk 0:00:04.6]} 88... Nd3 {[%clk 0:00:11.5]} 89. Rd4 {[%clk 0:00:05.1]} 89...
Kc3 {[%clk 0:00:11.8]} 90. Ke3 {[%clk 0:00:05]} 90... Nb2 {[%clk 0:00:12.4]} 91.
Rd8 {[%clk 0:00:04]} 91... Nc4+ {[%clk 0:00:13.1]} 92. Ke4 {[%clk 0:00:04.6]}
92... Nd2+ {[%clk 0:00:13.6]} 93. Kd5 {[%clk 0:00:05]} 93... Kd3 {[%clk
0:00:14]} 94. Rh8 {[%clk 0:00:04.4]} 94... Ke3 {[%clk 0:00:14.4]} 95. Rh3+
{[%clk 0:00:04.5]} 95... Nf3 {[%clk 0:00:15.1]} 96. Rxf3+ {[%clk 0:00:05]} 96...
Kxf3 {[%clk 0:00:15.5]} 1/2-1/2

[Event "Early-Titled-Tuesday-Blitz-February-20-2024"]
[Site "Chess.com"]
[Date "2024.02.20"]
[Round "7"]
[White "ExtremeLearner"]
[Black "GM_Huschenbeth"]
[Result "1/2-1/2"]
[WhiteElo "2579"]
[BlackElo "2490"]
[TimeControl "180+1"]
[EndTime "9:22:21 PST"]
[Termination "Game drawn by agreement"]

1. d4 {[%clk 0:02:55.3]} 1... d5 {[%clk 0:02:58.5]} 2. c4 {[%clk 0:02:54.8]}
2... dxc4 {[%clk 0:02:59.2]} 3. Nf3 {[%clk 0:02:53.5]} 3... Nf6 {[%clk
0:02:59.5]} 4. e3 {[%clk 0:02:53.5]} 4... Bg4 {[%clk 0:02:59.5]} 5. Bxc4 {[%clk
0:02:51.2]} 5... e6 {[%clk 0:02:59.8]} 6. h3 {[%clk 0:02:50.7]} 6... Bh5 {[%clk
0:02:59.6]} 7. Qb3 {[%clk 0:02:45.4]} 7... Bxf3 {[%clk 0:02:47.2]} 8. gxf3
{[%clk 0:02:46.3]} 8... Nbd7 {[%clk 0:02:44.5]} 9. Nc3 {[%clk 0:02:26]} 9... Nb6
{[%clk 0:02:33]} 10. Be2 {[%clk 0:02:16.8]} 10... Bd6 {[%clk 0:02:30.5]} 11. Ne4
{[%clk 0:01:48.7]} 11... Be7 {[%clk 0:02:08.7]} 12. Nxf6+ {[%clk 0:01:44.5]}
12... Bxf6 {[%clk 0:02:09.6]} 13. Bd2 {[%clk 0:01:45]} 13... a5 {[%clk
0:02:05.5]} 14. Rc1 {[%clk 0:01:41.2]} 14... O-O {[%clk 0:02:00.4]} 15. Qb5
{[%clk 0:01:34.2]} 15... c6 {[%clk 0:01:55]} 16. Qh5 {[%clk 0:01:29.6]} 16...
Nd5 {[%clk 0:01:39.9]} 17. e4 {[%clk 0:01:18.8]} 17... g6 {[%clk 0:01:31.7]} 18.
Qg4 {[%clk 0:01:12.6]} 18... Ne7 {[%clk 0:01:21.8]} 19. e5 {[%clk 0:00:52.3]}
19... Bg7 {[%clk 0:01:17.1]} 20. Bd3 {[%clk 0:00:50.4]} 20... Nf5 {[%clk
0:01:11.3]} 21. Bxf5 {[%clk 0:00:49.4]} 21... exf5 {[%clk 0:01:12.2]} 22. Qf4
{[%clk 0:00:47.3]} 22... f6 {[%clk 0:01:00.9]} 23. Bc3 {[%clk 0:00:40.4]} 23...
Qd5 {[%clk 0:00:49]} 24. O-O {[%clk 0:00:34.5]} 24... Rae8 {[%clk 0:00:46.4]}
25. Rfe1 {[%clk 0:00:34.2]} 25... Re6 {[%clk 0:00:38.9]} 26. Qe3 {[%clk
0:00:20.4]} 26... f4 {[%clk 0:00:36.3]} 27. Qe4 {[%clk 0:00:17.9]} 27... Qxa2
{[%clk 0:00:27.5]} 28. Ra1 {[%clk 0:00:12.6]} 28... Qc4 {[%clk 0:00:27.5]} 29.
Rxa5 {[%clk 0:00:11.2]} 29... Rfe8 {[%clk 0:00:24.6]} 30. d5 {[%clk 0:00:09.9]}
30... cxd5 {[%clk 0:00:23.1]} 31. Rxd5 {[%clk 0:00:08.4]} 31... Qxe4 {[%clk
0:00:21.2]} 32. Rxe4 {[%clk 0:00:08.5]} 32... fxe5 {[%clk 0:00:21]} 33. Rd7
{[%clk 0:00:07.7]} 33... R6e7 {[%clk 0:00:18.9]} 34. Rxe7 {[%clk 0:00:07.5]}
34... Rxe7 {[%clk 0:00:19.8]} 35. Rc4 {[%clk 0:00:08]} 35... Kf7 {[%clk
0:00:18.2]} 36. Kf1 {[%clk 0:00:06.6]} 36... Ke6 {[%clk 0:00:17.4]} 37. Ke2
{[%clk 0:00:07.3]} 37... Kd5 {[%clk 0:00:17.1]} 38. Rc8 {[%clk 0:00:07.4]} 38...
h5 {[%clk 0:00:11.1]} 39. Kd3 {[%clk 0:00:07.5]} 39... Rd7 {[%clk 0:00:10.7]}
40. Rg8 {[%clk 0:00:06.2]} 40... g5 {[%clk 0:00:10.5]} 41. Ke2 {[%clk
0:00:04.4]} 41... Ke6 {[%clk 0:00:09.4]} 42. Re8+ {[%clk 0:00:04.7]} 42... Kf5
{[%clk 0:00:08.6]} 43. Rc8 {[%clk 0:00:05.2]} 43... Re7 {[%clk 0:00:04.4]} 44.
Rg8 {[%clk 0:00:05.1]} 44... e4 {[%clk 0:00:04.1]} 45. fxe4+ {[%clk 0:00:05.3]}
45... Rxe4+ {[%clk 0:00:03.7]} 46. Kd3 {[%clk 0:00:05.7]} 46... Bxc3 {[%clk
0:00:03.5]} 47. bxc3 {[%clk 0:00:06.3]} 47... Re7 {[%clk 0:00:03.1]} 48. Rf8+
{[%clk 0:00:06.5]} 48... Ke5 {[%clk 0:00:03.5]} 49. Rg8 {[%clk 0:00:06.6]} 49...
Rd7+ {[%clk 0:00:03.6]} 50. Ke2 {[%clk 0:00:06.7]} 50... Kf6 {[%clk 0:00:04]}
51. Rf8+ {[%clk 0:00:07.2]} 51... Rf7 {[%clk 0:00:04.4]} 52. Rg8 {[%clk
0:00:06.5]} 52... Rc7 {[%clk 0:00:03.8]} 53. Kd3 {[%clk 0:00:06.5]} 53... Rd7+
{[%clk 0:00:03.9]} 54. Ke4 {[%clk 0:00:06.6]} 54... Re7+ {[%clk 0:00:04.3]} 55.
Kd4 {[%clk 0:00:05.3]} 55... Rd7+ {[%clk 0:00:04.1]} 56. Ke4 {[%clk 0:00:05.5]}
56... Re7+ {[%clk 0:00:02.9]} 57. Kd3 {[%clk 0:00:06]} 57... Kf5 {[%clk
0:00:02.3]} 58. Rf8+ {[%clk 0:00:06.1]} 58... Ke5 {[%clk 0:00:02.8]} 59. Rg8
{[%clk 0:00:06.8]} 59... Rd7+ {[%clk 0:00:03.3]} 60. Ke2 {[%clk 0:00:07.2]}
60... Kf5 {[%clk 0:00:02.7]} 61. Rf8+ {[%clk 0:00:07.2]} 61... Ke4 {[%clk
0:00:03]} 62. Re8+ {[%clk 0:00:06.7]} 62... Kf5 {[%clk 0:00:02.3]} 63. Rf8+
{[%clk 0:00:07.2]} 63... Kg6 {[%clk 0:00:01.8]} 64. Rg8+ {[%clk 0:00:07.5]}
64... Rg7 {[%clk 0:00:02.2]} 65. Rd8 {[%clk 0:00:06.1]} 65... Re7+ {[%clk
0:00:02.3]} 66. Kd3 {[%clk 0:00:05.9]} 66... g4 {[%clk 0:00:02.6]} 67. hxg4
{[%clk 0:00:05.2]} 67... hxg4 {[%clk 0:00:03.5]} 68. Rf8 {[%clk 0:00:05]} 68...
Kg5 {[%clk 0:00:03.4]} 69. Rg8+ {[%clk 0:00:05]} 69... Kf5 {[%clk 0:00:03.6]}
70. Rf8+ {[%clk 0:00:05.3]} 70... Ke5 {[%clk 0:00:03.9]} 71. Rg8 {[%clk
0:00:05.6]} 71... Rd7+ {[%clk 0:00:03.8]} 72. Ke2 {[%clk 0:00:06.1]} 72... Kf5
{[%clk 0:00:04.1]} 73. Rf8+ {[%clk 0:00:06.5]} 73... Ke4 {[%clk 0:00:04.1]} 74.
Re8+ {[%clk 0:00:06.6]} 74... Kd5 {[%clk 0:00:02.5]} 75. Rg8 {[%clk 0:00:07.2]}
75... f3+ {[%clk 0:00:01.1]} 76. Kd3 {[%clk 0:00:06.3]} 76... Kc5+ {[%clk
0:00:01.3]} 77. Kc2 {[%clk 0:00:04.7]} 77... Re7 {[%clk 0:00:02]} 78. Rxg4
{[%clk 0:00:04.5]} 78... Re2+ {[%clk 0:00:02.9]} 79. Kd3 {[%clk 0:00:04.8]}
79... Rxf2 {[%clk 0:00:03.8]} 80. Rg5+ {[%clk 0:00:04.9]} 80... Kc6 {[%clk
0:00:03.7]} 81. Rf5 {[%clk 0:00:05.3]} 81... Rf1 {[%clk 0:00:03.2]} 82. Ke3
{[%clk 0:00:03.6]} 82... b5 {[%clk 0:00:02.9]} 83. Rxf3 {[%clk 0:00:03.5]} 83...
Rc1 {[%clk 0:00:02]} 84. Kd2 {[%clk 0:00:03.5]} 84... Rh1 {[%clk 0:00:02.3]} 85.
Rf6+ {[%clk 0:00:03.8]} 85... Kc5 {[%clk 0:00:02.8]} 86. Kc2 {[%clk 0:00:04.2]}
86... Rh2+ {[%clk 0:00:02.6]} 87. Kb3 {[%clk 0:00:04.7]} 87... Rh3 {[%clk
0:00:03.5]} 88. Rf5+ {[%clk 0:00:05.3]} 88... Kb6 {[%clk 0:00:04]} 89. Rf8
{[%clk 0:00:02.6]} 89... Kc5 {[%clk 0:00:01.9]} 90. Rc8+ {[%clk 0:00:03]} 90...
Kb6 {[%clk 0:00:01.7]} 1/2-1/2